bitfinex-derivatives/quotes_ETHF0:USTF0_20250404
["timestamp","ask_amount","ask_price","bid_price","bid_amount"]
[1743789299891,3.2078,1823.2,1822.8,2.085]
[1743789300186,1.9994,1823.1,1822.8,2.085]
[1743789300388,3.09686,1823.1,1822.8,3.18258]
[1743789300682,2.00762256,1823.1,1822.8,2.085]
[1743789300887,8.03360001,1823.0,1822.4,3.2078]
[1743789301186,1.09778,1822.6,1822.3,8.35865488]
[1743789301383,4.30567,1822.4,1822.3,8.35865488]
[1743789301582,8.58267,1822.4,1822.3,8.35865488]
[1743789301885,8.58267,1822.4,1822.0,16.71730977]
[1743789301886,1.09805,1822.1,1822.0,16.71730977]
[1743789302085,8.58285,1822.1,1822.0,16.71730977]
[1743789302381,3.2078,1822.1,1822.0,16.71730977]
[1743789302686,1.9254,1822.2,1821.7,1.9751]
[1743789302877,1.9254,1822.1,1822.0,1.09811]
[1743789303079,1.93362256,1822.1,1822.0,1.09811]
[1743789303286,2.56e-06,1822.1,1822.0,3.59811]
[1743789303587,2.56e-06,1822.1,1822.0,5.57321]
[1743789304287,2.56e-06,1822.1,1822.0,6.10405558]
[1743789304488,2.56e-06,1822.1,1822.0,46.90405558]
[1743789305291,2.56e-06,1822.1,1822.0,52.77405302]
[1743789305587,6.80930001,1823.0,1822.9,1.09756]
[1743789305789,0.54880001,1823.1,1823.0,1.0975]
[1743789305984,21.23748386,1823.2,1823.1,1.09744]
[1743789306176,14.97698386,1823.2,1823.1,1.09744]
[1743789306893,14.97698386,1823.2,1823.1,41.89744]
[1743789307087,14.97698386,1823.2,1823.1,43.95174]
[1743789307287,14.97698386,1823.2,1823.1,46.45174]
[1743789307785,13.69916386,1823.2,1823.1,46.45174]
[1743789307986,9.28916386,1823.2,1823.1,46.98131291]
[1743789308180,7.01321386,1823.2,1823.1,46.98131291]
[1743789308386,4.68113386,1823.2,1823.1,46.98131291]
[1743789308787,0.00822256,1823.3,1823.1,46.98131291]
[1743789308788,2.56e-06,1823.3,1823.2,1.09738]
[1743789308995,2.56e-06,1823.3,1823.2,8.87568]
[1743789309497,2.56e-06,1823.3,1823.2,49.67568]
[1743789310391,2.56e-06,1823.3,1823.2,50.20539266]
[1743789310592,2.56e-06,1823.3,1823.2,49.67568]
[1743789310790,2.56e-06,1823.3,1823.2,43.96788]
[1743789310991,2.56e-06,1823.3,1823.2,3.16788]
[1743789311296,2.56e-06,1823.3,1823.2,8.87568]
[1743789311496,2.56e-06,1823.3,1823.2,53.95268]
[1743789312994,2.56e-06,1823.3,1823.2,59.82267744]
[1743789313689,2.56e-06,1823.3,1823.2,60.35218883]
[1743789314282,2.56e-06,1823.3,1823.2,60.35204794]
[1743789314583,2.56e-06,1823.3,1823.2,61.03563227]
[1743789315097,2.56e-06,1823.3,1823.2,60.35204794]
[1743789316283,2.56e-06,1823.3,1823.2,61.09647323]
[1743789316489,1.09684,1824.2,1824.1,1.09684]
[1743789316490,2.47320001,1824.2,1824.1,1.09684]
[1743789317393,1.9244,1824.2,1824.1,1.09684]
[1743789317593,1.09684,1824.1,1824.0,0.00822256]
[1743789317790,4.30464,1824.1,1824.0,0.00822256]
[1743789317993,1.09703,1823.8,1823.4,9.29621054]
[1743789318190,7.4838,1823.9,1823.4,8.50003054]
[1743789318394,5.37304,1823.8,1823.6,1.0971]
[1743789318791,1.09708,1823.7,1823.6,1.0971]
[1743789318992,4.276,1823.8,1823.6,1.0971]
[1743789319192,5.37305,1823.8,1823.6,1.0971]
[1743789319390,4.276,1823.8,1823.5,0.00822256]
[1743789319589,5.37302,1823.8,1823.6,1.0971]
[1743789319992,4.276,1823.8,1823.5,0.00822256]
[1743789320191,4.276,1823.8,1823.6,1.09714]
[1743789320394,5.37304,1823.8,1823.6,1.09714]
[1743789320599,4.276,1823.8,1823.7,1.09708]
[1743789321697,9.9838,1823.8,1823.5,0.00822256]
[1743789321890,5.95075,1823.6,1823.1,5.86999744]
[1743789322090,3.2078,1823.4,1823.1,1.0974]
[1743789322289,3.2078,1823.4,1822.9,3.2078]
[1743789322290,4.30518,1823.2,1823.0,41.89747]
[1743789322491,4.275,1823.2,1823.1,1.09744]
[1743789322901,5.37238,1823.2,1823.0,1.09746]
[1743789323394,4.275,1823.2,1823.0,1.09746]
[1743789323997,4.275,1823.2,1823.1,1.09744]
[1743789324198,4.275,1823.2,1823.0,1.09748]
[1743789324901,4.275,1823.2,1823.0,1.09745]
[1743789325302,4.275,1823.2,1823.0,1.09746]
[1743789325801,4.275,1823.2,1823.1,1.09744]
[1743789326300,5.3724,1823.2,1823.0,1.0975]
[1743789326503,4.275,1823.2,1823.0,1.09745]
[1743789327007,3.2078,1823.1,1822.8,5.86999744]
[1743789327195,5.3724,1823.2,1823.0,1.0975]
[1743789327391,4.275,1823.2,1822.9,1.09752]
[1743789327592,4.275,1823.2,1822.8,47.76760744]
[1743789327791,4.30526,1823.1,1822.9,1.09755]
[1743789328697,4.30526,1823.1,1822.9,1.09754]
[1743789328905,4.30526,1823.1,1822.8,47.76757744]
[1743789329099,5.37246,1823.1,1822.9,1.09755]
[1743789329308,4.275,1823.1,1822.9,1.09755]
[1743789329509,5.37245,1823.1,1822.9,1.09755]
[1743789329803,5.37245,1823.1,1822.8,46.66999744]
[1743789329804,7.4828,1823.1,1822.8,46.66999744]
[1743789330006,7.4828,1823.1,1822.8,47.76760744]
[1743789330200,8.58026,1823.1,1822.9,1.09756]
[1743789330397,8.58026,1823.1,1822.9,1.09755]
[1743789330605,7.4828,1823.1,1822.9,1.09755]
[1743789331006,7.4828,1823.1,1822.8,46.66999744]
[1743789331007,3.2078,1823.1,1822.8,46.66999744]
[1743789331206,4.275,1823.2,1822.8,46.66999744]
[1743789331405,4.275,1823.2,1823.1,1.09744]
[1743789331603,5.37241,1823.2,1822.9,2.0624]
[1743789331804,4.275,1823.2,1823.0,1.09747]
[1743789332007,3.11015,1823.1,1822.9,3.15993]
[1743789332302,5.2205,1823.1,1822.9,2.0624]
[1743789332501,5.2205,1823.1,1822.3,9.07779744]
[1743789332808,1.0977,1822.7,1822.5,1.09778]
[1743789333007,1.9184,1822.6,1822.5,1.09778]
[1743789333207,1.09783,1822.5,1822.3,6.96790744]
[1743789333408,5.1262,1822.4,1822.3,5.86999744]
[1743789333611,1.9184,1822.4,1822.3,41.89793]
[1743789334207,1.9184,1822.4,1822.3,1.09793]
[1743789334408,6.22408,1822.4,1822.2,1.09797]
[1743789334713,1.09805,1822.1,1822.0,5.86999744]
[1743789335009,1.09805,1822.1,1821.9,41.89815]
[1743789335307,7.4828,1822.2,1821.6,1.0983]
[1743789335308,1.09819,1821.9,1821.6,1.0983]
[1743789335510,2.0705,1821.8,1821.6,1.0983]
[1743789335910,2.0705,1821.8,1821.5,5.86999744]
[1743789336115,2.0705,1821.8,1821.6,3.1121]
[1743789336409,1.09831,1821.7,1821.5,1.09839]
[1743789336609,2.0705,1821.6,1821.5,1.09839]
[1743789336809,2.0705,1821.6,1821.5,1.09841]
[1743789337312,5.2783,1821.6,1821.5,1.09841]
[1743789337511,5.2783,1821.6,1821.4,41.89842]
[1743789337806,9.5533,1821.6,1821.1,1.09861]
[1743789338007,1.09845,1821.5,1821.2,1.09856]
[1743789338204,2.0166,1821.4,1821.3,1.09853]
[1743789338601,7.4828,1821.6,1821.3,1.09852]
[1743789338810,2.0166,1821.5,1821.4,1.09847]
[1743789339012,2.0166,1821.5,1821.3,1.0985]
[1743789339410,2.0166,1821.5,1821.4,1.09847]
[1743789339615,2.0166,1821.5,1821.3,1.09849]
[1743789339818,2.0166,1821.5,1821.4,1.09847]
[1743789340516,2.0166,1821.5,1821.3,1.09849]
[1743789341010,4.30628,1821.4,1821.2,1.09856]
[1743789341210,2.0271,1821.3,1821.0,1.8811]
[1743789341412,2.0271,1821.3,1821.2,1.09859]
[1743789342118,3.12563,1821.3,1821.1,1.09861]
[1743789342314,3.12566,1821.3,1821.0,43.77979]
[1743789342514,3.12566,1821.3,1821.1,1.09864]
[1743789342716,2.0271,1821.3,1821.2,1.09859]
[1743789343009,2.0271,1821.3,1821.0,43.77978]
[1743789343209,2.0271,1821.3,1820.9,5.86999744]
[1743789343417,2.0271,1821.3,1821.2,1.09859]
[1743789343916,2.0271,1821.3,1821.2,41.89859]
[1743789344320,7.49102256,1821.4,1821.3,1.09853]
[1743789344321,0.00822256,1821.4,1821.3,1.09853]
[1743789344519,0.00822256,1821.4,1821.3,3.06463]
[1743789344914,35.1326,1821.9,1821.4,2.74611]
[1743789345107,35.1326,1821.9,1821.5,1.9661]
[1743789345313,1.934,1821.8,1821.7,1.09827]
[1743789345721,35.1326,1821.9,1821.8,1.09823]
[1743789346214,0.00822256,1822.0,1821.9,1.09817]
[1743789346720,0.00822256,1822.0,1821.9,3.59817]
[1743789346916,0.00822256,1822.0,1821.9,6.27207]
[1743789349121,0.00822256,1822.0,1821.9,8.77207]
[1743789349315,0.00822256,1822.0,1821.9,10.73087]
[1743789349517,0.5496,1822.3,1822.2,1.09799]
[1743789350216,0.5496,1822.3,1822.2,3.09399]
[1743789350721,2.5484,1822.3,1822.2,3.09399]
[1743789350920,0.5496,1822.3,1822.2,3.09399]
[1743789351718,1.64754,1822.3,1822.2,1.09799]
[1743789352023,2.5484,1822.3,1822.2,1.09799]
[1743789352820,0.55782256,1822.4,1822.3,1.09793]
[1743789353729,2.58012256,1822.4,1822.3,1.09793]
[1743789354615,2.58012256,1822.4,1822.2,3.05174]
[1743789354616,3.67801256,1822.4,1822.2,3.05174]
[1743789354820,3.67801256,1822.4,1822.3,1.09793]
[1743789355025,2.58012256,1822.4,1822.3,1.09793]
[1743789355325,3.67799256,1822.4,1822.3,1.09793]
[1743789355529,3.67801256,1822.4,1822.2,1.9538]
[1743789355823,3.67801256,1822.4,1822.3,1.09793]
[1743789355824,3.67799256,1822.4,1822.3,1.09793]
[1743789356019,3.12839256,1822.4,1822.2,1.9538]
[1743789356220,3.12839256,1822.4,1822.2,3.05179]
[1743789356428,0.54880001,1822.3,1822.2,6.25959]
[1743789356723,0.00822256,1822.4,1822.3,1.09793]
[1743789357627,0.00822256,1822.4,1822.3,1.62889676]
[1743789358219,0.00822256,1822.4,1822.3,2.31438798]
[1743789358829,0.00822256,1822.4,1822.3,2.31433075]
[1743789359330,0.00822256,1822.4,1822.3,43.11433075]
[1743789360032,0.00822256,1822.4,1822.3,42.42883953]
[1743789360526,0.00822256,1822.4,1822.3,41.89793]
[1743789360726,0.00822256,1822.4,1822.3,42.42917813]
[1743789360932,0.54880001,1823.1,1822.3,55.81938828]
[1743789361128,4.85388001,1823.4,1823.3,1.09729]
[1743789361327,3.59626001,1823.3,1823.2,1.09736]
[1743789361534,2.74347,1823.2,1822.7,2.0196]
[1743789361733,1.09758,1822.9,1822.8,1.09763]
[1743789362027,10.1358,1823.1,1822.7,3.2078]
[1743789362222,1.9501,1823.1,1823.0,1.0975]
[1743789362428,1.95832256,1823.1,1823.0,1.0975]
[1743789362825,2.56e-06,1823.1,1823.0,4.12809559]
[1743789363027,2.56e-06,1823.1,1823.0,14.62882258]
[1743789363427,2.56e-06,1823.1,1823.0,14.62748201]
[1743789363623,2.56e-06,1823.1,1823.0,56.11128053]
[1743789363829,2.56e-06,1823.1,1823.0,52.86629155]
[1743789364024,2.56e-06,1823.1,1823.0,3.64609852]
[1743789364539,2.56e-06,1823.1,1823.0,2.9623]
[1743789365234,1.09753,1823.0,1822.8,1.0976]
[1743789365431,1.9363,1822.9,1822.8,1.0976]
[1743789365635,1.09763,1822.8,1822.7,0.00822256]
[1743789365837,6.35613,1822.8,1822.7,0.00822256]
[1743789366029,1.09779,1822.6,1822.3,1.09789]
[1743789366329,4.271,1822.6,1822.4,1.09781]
[1743789366535,8.88340001,1822.8,1822.7,1.09769]
[1743789366735,2.59950001,1822.8,1822.7,1.09769]
[1743789366935,0.54880001,1822.8,1822.7,1.09769]
[1743789367134,0.54880001,1822.8,1822.6,0.00822256]
[1743789367333,1.9363,1822.7,1822.6,1.10593256]
[1743789367836,0.54880001,1822.8,1822.7,1.09769]
[1743789368235,1.9363,1822.9,1822.8,1.09763]
[1743789368432,1.9363,1822.9,1822.7,3.01684]
[1743789368642,2.48510001,1822.9,1822.8,1.09763]
[1743789370435,4.81980001,1823.0,1822.9,1.09756]
[1743789370734,0.54880001,1823.0,1822.9,1.09756]
[1743789370935,2.46890257,1823.1,1823.0,1.0975]
[1743789370936,2.56e-06,1823.1,1823.0,1.0975]
[1743789371235,2.56e-06,1823.1,1823.0,3.0167]
[1743789371435,2.56e-06,1823.1,1823.0,6.04527385]
[1743789371632,2.56e-06,1823.1,1823.0,46.84527385]
[1743789371835,2.56e-06,1823.1,1823.0,52.71527129]
[1743789372033,2.56e-06,1823.1,1823.0,57.66760011]
[1743789372233,2.56e-06,1823.1,1823.0,58.41146638]
[1743789372430,2.56e-06,1823.1,1823.0,58.41112231]
[1743789373632,1.8971,1823.9,1823.8,1.09702]
[1743789373935,3.29108001,1824.0,1823.4,1.09723]
[1743789374238,1.09718,1823.6,1823.3,3.08437]
[1743789374434,1.865,1823.5,1823.3,3.08437]
[1743789374740,1.865,1823.5,1823.2,3.2078]
[1743789374741,2.96225,1823.5,1823.2,3.2078]
[1743789374940,1.865,1823.5,1823.2,3.21602256]
[1743789375132,1.865,1823.5,1823.3,3.02009]
[1743789375333,1.865,1823.5,1823.4,1.09726]
[1743789375543,1.865,1823.5,1823.2,4.31338256]
[1743789375743,1.865,1823.5,1823.3,1.09731]
[1743789375934,2.96222,1823.5,1823.3,1.09731]
[1743789376244,1.865,1823.5,1823.3,1.0973]
[1743789376635,1.865,1823.5,1823.2,3.21602256]
[1743789376932,1.865,1823.5,1823.4,1.09726]
[1743789377139,0.55702257,1823.6,1823.5,1.0972]
[1743789377342,0.00822256,1823.6,1823.5,1.0972]
[1743789377636,0.00822256,1823.6,1823.5,3.1156]
[1743789378735,0.00822256,1823.6,1823.5,5.6156]
[1743789378928,0.00822256,1823.6,1823.5,6.14469475]
[1743789379238,2.40950001,1824.1,1824.0,1.0969]
[1743789379535,3.50636001,1824.1,1823.9,1.09694]
[1743789379842,3.50636001,1824.1,1823.9,41.89692]
[1743789380234,2.40950001,1824.1,1823.9,40.8]
[1743789380437,3.50637001,1824.1,1823.9,41.89691]
[1743789380641,5.61730001,1824.1,1823.6,6.96710744]
[1743789380840,7.4748,1824.0,1823.5,3.13846]
[1743789381135,1.09703,1823.8,1823.6,1.09712]
[1743789381437,1.8681,1823.7,1823.6,1.09714]
[1743789381838,8.57175,1824.0,1823.8,1.09699]
[1743789382140,1.8681,1823.9,1823.8,1.09699]
[1743789382341,1.09696,1823.9,1823.7,3.13834]
[1743789382541,5.23206,1824.0,1823.8,1.09702]
[1743789382739,1.09702,1823.8,1823.6,1.09713]
[1743789382944,5.95024,1823.9,1823.4,5.2491]
[1743789383437,5.95053,1823.7,1823.2,3.21602256]
[1743789383637,8.2366,1823.6,1823.3,1.09731]
[1743789383838,8.2366,1823.6,1823.4,3.10186]
[1743789383839,9.33376,1823.6,1823.4,3.10186]
[1743789384040,3.2078,1823.7,1823.4,3.10186]
[1743789384041,1.09705,1823.8,1823.5,1.0972]
[1743789384239,1.09702,1823.8,1823.6,2.0046]
[1743789384645,1.09708,1823.7,1823.6,2.0046]
[1743789385040,1.09708,1823.8,1823.6,3.10173]
[1743789385242,1.09708,1823.7,1823.6,2.0046]
[1743789385441,4.77059,1823.8,1823.4,1.09722]
[1743789385637,2.028,1823.8,1823.5,1.0972]
[1743789385844,2.028,1823.8,1823.4,4.74777]
[1743789386051,3.12502,1823.8,1823.4,4.74777]
[1743789386244,2.028,1823.8,1823.4,4.74777]
[1743789386447,1.09714,1823.6,1823.5,1.0972]
[1743789386646,1.09714,1823.6,1823.4,3.10182]
[1743789386842,1.9793,1823.5,1823.4,3.10182]
[1743789387152,1.9793,1823.5,1823.4,1.09726]
[1743789387543,2.74228,1824.0,1823.6,1.09711]
[1743789387741,3.97882256,1824.2,1823.9,3.2078]
[1743789387954,1.65384257,1824.2,1824.0,3.07646]
[1743789388255,1.09695,1824.0,1823.8,1.09701]
[1743789388447,3.0762,1824.1,1823.9,1.09696]
[1743789388641,3.0762,1824.1,1824.0,1.0969]
[1743789388943,3.0762,1824.1,1823.8,1.9796]
[1743789389356,1.09693,1824.0,1823.8,1.9796]
[1743789389547,1.9793,1824.0,1823.8,1.09699]
[1743789389747,1.9793,1824.0,1823.9,1.09696]
[1743789390352,3.0762,1824.0,1823.8,1.09699]
[1743789390557,1.9793,1824.0,1823.9,1.09696]
[1743789390750,3.07623,1824.0,1823.7,5.2454]
[1743789390951,3.07623,1824.0,1823.8,1.09699]
[1743789391352,3.07622,1824.0,1823.8,1.09702]
[1743789391550,1.09697,1823.9,1823.7,2.0376]
[1743789391755,2.0031,1823.8,1823.4,8.61315744]
[1743789391957,8.02982257,1824.2,1823.9,1.09693]
[1743789392254,3.10005,1824.0,1823.8,1.09702]
[1743789392456,3.10005,1824.0,1823.6,4.78042]
[1743789392654,0.55702257,1824.2,1823.7,5.95052]
[1743789392853,7.84284257,1824.2,1823.8,4.77077]
[1743789393054,6.74602257,1824.2,1824.0,1.09688]
[1743789393246,3.2078,1824.1,1823.4,8.61315744]
[1743789393447,5.95022,1823.9,1823.5,1.62673597]
[1743789393650,8.2174,1823.8,1823.4,4.77134]
[1743789393851,8.2174,1823.8,1823.7,1.09708]
[1743789394450,6.2924,1823.8,1823.7,1.09708]
[1743789395653,35.12202257,1824.2,1823.6,4.77094]
[1743789395860,1.09688,1824.1,1824.0,1.0969]
[1743789396057,3.53728001,1824.1,1824.0,1.0969]
[1743789396258,1.8916,1824.1,1824.0,1.0969]
[1743789396558,3.53724001,1824.1,1824.0,1.0969]
[1743789396863,2.44040001,1824.1,1824.0,1.0969]
[1743789397155,1.09714,1823.6,1823.3,3.2078]
[1743789397457,1.09714,1823.6,1823.3,1.0973]
[1743789397458,1.0972,1823.5,1823.3,1.0973]
[1743789397653,1.8916,1823.5,1823.4,1.09726]
[1743789397952,1.8916,1823.5,1823.2,2.03082256]
[1743789398153,7.4708,1823.4,1822.9,2.0226]
[1743789398357,1.09757,1822.9,1822.7,1.09764]
[1743789398568,4.263,1823.0,1822.8,42.42895883]
[1743789398852,2.0563,1823.2,1823.1,1.09744]
[1743789399057,1.8683,1823.3,1823.2,1.09738]
[1743789399355,1.8683,1823.3,1823.2,3.59276525]
[1743789399563,0.54880001,1823.9,1823.8,1.09702]
[1743789399754,1.64582001,1823.9,1823.5,3.2078]
[1743789399953,2.41710001,1823.9,1823.8,1.09702]
[1743789400250,2.53870001,1824.1,1823.8,0.53079705]
[1743789400456,2.41710001,1824.2,1824.1,1.09684]
[1743789400650,1.9756,1824.8,1824.1,6.98537283]
[1743789400954,17.11655299,1825.0,1824.7,3.2078]
[1743789401148,18.21287299,1825.0,1824.8,44.72748637]
[1743789401347,1.09636,1824.9,1824.8,0.68581354]
[1743789401548,7.22766,1824.9,1824.8,0.68581354]
[1743789401748,12.6051,1824.9,1824.4,1.9641]
[1743789401958,10.1051,1824.9,1824.5,40.8]
[1743789402156,3.2078,1824.8,1824.3,0.00822256]
[1743789402460,1.09658,1824.6,1824.3,1.96062256]
[1743789402661,1.9405,1824.5,1824.3,1.96062256]
[1743789403060,3.03712,1824.5,1824.3,1.96062256]
[1743789403252,1.9405,1824.5,1824.3,1.10490256]
[1743789403549,3.03711,1824.5,1824.3,0.00822256]
[1743789403750,1.9405,1824.5,1824.3,0.00822256]
[1743789404257,3.2078,1824.4,1823.8,3.2078]
[1743789404453,3.2078,1824.4,1823.4,7.00516]
[1743789404454,3.2078,1824.2,1823.6,3.2078]
[1743789404654,1.9405,1824.1,1823.9,1.09693]
[1743789405161,1.9405,1824.1,1823.9,1.09692]
[1743789405753,1.9405,1824.1,1823.9,3.05502]
[1743789406150,3.03735,1824.1,1823.9,3.05502]
[1743789406354,1.9405,1824.1,1823.9,3.05502]
[1743789406961,1.9405,1824.1,1824.0,1.0969]
[1743789407165,1.9405,1824.1,1823.9,1.9581]
[1743789407360,1.9405,1824.1,1823.9,3.05502]
[1743789408464,1.9405,1824.1,1823.9,1.9581]
[1743789408664,1.9405,1824.1,1823.9,3.05503]
[1743789409164,1.9405,1824.1,1824.0,1.0969]
[1743789409362,1.9405,1824.1,1824.0,1.8908]
[1743789409668,1.9405,1824.1,1824.0,2.9877]
[1743789410365,0.00822256,1824.2,1824.1,1.09684]
[1743789411568,0.00822256,1824.2,1824.0,1.8908]
[1743789411770,1.09684,1824.1,1824.0,1.8908]
[1743789411967,1.9072,1824.1,1824.0,1.8908]
[1743789412265,0.00822256,1824.2,1824.1,1.09684]
[1743789412862,1.09684,1824.1,1824.0,1.8908]
[1743789413063,3.00404,1824.1,1823.8,4.31300256]
[1743789413262,0.54880001,1824.0,1823.8,0.00822256]
[1743789413571,6.71700001,1824.0,1823.8,1.10523256]
[1743789413863,0.54880001,1824.0,1823.9,1.09696]
[1743789414060,0.00822256,1824.2,1824.1,1.09684]
[1743789414361,17.11655299,1824.6,1824.5,1.0966]
[1743789415166,18.21312299,1824.6,1824.4,2.0406]
[1743789415358,2.0333,1824.5,1824.4,3.13725]
[1743789416069,2.58210001,1824.5,1824.4,3.13725]
[1743789416567,0.54880001,1824.5,1824.4,3.13725]
[1743789416966,0.55702257,1824.7,1824.6,1.09654]
[1743789417870,0.55702257,1824.7,1824.5,1.09656]
[1743789418072,2.44072257,1824.7,1824.6,2.98164]
[1743789418371,0.55702257,1824.7,1824.6,2.98164]
[1743789420266,0.55702257,1824.7,1824.6,1.8851]
[1743789420466,0.55702257,1824.7,1824.6,2.98164]
[1743789421169,2.74151,1824.5,1824.0,3.12767]
[1743789421373,3.2078,1824.1,1823.8,4.31302256]
[1743789421575,1.8695,1824.0,1823.9,1.09696]
[1743789422272,5.1241,1824.3,1824.2,1.09678]
[1743789422273,6.1753,1824.3,1824.2,1.09678]
[1743789422570,9.21316,1824.4,1824.2,1.09676]
[1743789422772,3.8575,1824.4,1824.3,1.09672]
[1743789423073,6.1753,1824.6,1824.5,1.0966]
[1743789423274,1.9163,1824.6,1824.5,1.0966]
[1743789423671,2.42062257,1824.7,1824.6,1.09654]
[1743789423975,0.55702257,1824.7,1824.6,1.09654]
[1743789424163,17.11655299,1824.9,1824.8,1.09642]
[1743789424369,17.11655299,1824.9,1824.8,4.83348243]
[1743789424569,16.43896201,1824.9,1824.8,7.33348243]
[1743789424770,16.43896201,1824.9,1824.8,12.27068761]
[1743789424965,16.43896201,1824.9,1824.8,53.07068761]
[1743789425471,16.43896201,1824.9,1824.8,45.63348243]
[1743789425671,16.43896201,1824.9,1824.8,48.13290752]
[1743789426073,16.43896201,1824.9,1824.8,48.8763045]
[1743789426379,0.00822256,1825.0,1824.9,1.09636]
[1743789426674,0.00822256,1825.0,1824.9,3.13116]
[1743789427071,1.10452256,1825.0,1824.9,3.13116]
[1743789427273,1.10452256,1825.0,1824.9,2.0348]
[1743789427667,1.09636,1824.9,1824.8,0.00822256]
[1743789427974,3.11256,1824.9,1824.8,0.00822256]
[1743789428181,7.36956,1824.9,1824.8,0.00822256]
[1743789428382,9.86956,1824.9,1824.8,0.00822256]
[1743789429273,7.36956,1824.9,1824.8,0.00822256]
[1743789429479,6.2732,1824.9,1824.8,0.00822256]
[1743789429678,6.2732,1824.9,1824.8,1.10464256]
[1743789429878,0.00822256,1825.0,1824.9,1.09636]
[1743789430181,0.00822256,1825.0,1824.9,1.8625]
[1743789430379,1.10452256,1825.0,1824.9,1.8625]
[1743789430681,1.95712256,1825.0,1824.9,2.95886]
[1743789430876,0.00822256,1825.0,1824.9,2.95886]
[1743789431774,0.00822256,1825.0,1824.9,6.16666]
[1743789431976,0.00822256,1825.0,1824.9,2.95886]
[1743789432980,0.00822256,1825.0,1824.9,6.16666]
[1743789433284,0.00822256,1825.0,1824.9,9.19593163]
[1743789433476,0.00822256,1825.0,1824.9,4.82876]
[1743789433989,0.00822256,1825.0,1824.9,45.62876]
[1743789434476,0.00822256,1825.0,1824.9,1.8625]
[1743789434681,0.00822256,1825.0,1824.9,2.95886]
[1743789436482,0.55622256,1825.0,1824.9,2.95886]
[1743789436784,0.00822256,1825.0,1824.9,2.95886]
[1743789437587,0.00822256,1825.0,1824.9,3.4879529]
[1743789438592,0.00822256,1825.0,1824.9,2.95886]
[1743789439277,0.00822256,1825.0,1824.9,3.48800344]
[1743789439785,0.00822256,1825.0,1824.9,5.98800344]
[1743789441192,0.00822256,1825.0,1824.9,6.66626239]
[1743789441395,2.56e-06,1825.0,1824.9,7.41053955]
[1743789442884,2.56e-06,1825.0,1824.9,13.28053699]
[1743789443893,2.56e-06,1825.0,1824.9,13.28064522]
[1743789444900,2.56e-06,1825.0,1824.9,3.63711895]
[1743789445198,2.56e-06,1825.0,1824.9,2.95886]
[1743789445597,1.09630256,1825.0,1824.9,1.8625]
[1743789445797,1.09636,1824.9,1824.8,3.21602256]
[1743789445991,1.09636,1824.9,1824.8,4.31244256]
[1743789445992,3.18676,1824.9,1824.8,4.31244256]
[1743789446199,2.0904,1824.9,1824.8,4.31244256]
[1743789446395,3.18676,1824.9,1824.8,3.21602256]
[1743789447598,1.96650256,1825.0,1824.8,3.21602256]
[1743789447799,2.56e-06,1825.0,1824.9,3.04586]
[1743789448498,1.09636,1824.9,1824.8,3.21602256]
[1743789448696,7.40036,1824.9,1824.8,3.21602256]
[1743789449905,7.40036,1824.9,1824.8,4.31244256]
[1743789450102,6.304,1824.9,1824.8,6.26194256]
[1743789450300,7.40036,1824.9,1824.8,6.26194256]
[1743789450501,1.96650256,1825.0,1824.9,1.09636]
[1743789450502,2.56e-06,1825.0,1824.9,1.09636]
[1743789450699,1.09630256,1825.0,1824.9,3.11376]
[1743789450900,2.56e-06,1825.0,1824.9,3.11376]
[1743789451295,1.09630256,1825.0,1824.9,2.0174]
[1743789451702,1.09630256,1825.0,1824.9,3.11376]
[1743789452103,2.56e-06,1825.0,1824.9,3.11376]
[1743789452403,2.56e-06,1825.0,1824.9,3.64439295]
[1743789452600,2.56e-06,1825.0,1824.9,3.64500514]
[1743789453611,2.56e-06,1825.0,1824.9,4.32627377]
[1743789453809,1.09630256,1825.0,1824.9,4.32627377]
[1743789454007,1.09630256,1825.0,1824.9,2.54864514]
[1743789454213,1.09630256,1825.0,1824.9,0.53124514]
[1743789454620,1.09636,1824.9,1824.8,4.31243256]
[1743789454811,3.20576,1824.9,1824.8,4.84377257]
[1743789455509,3.20576,1824.9,1824.8,3.74736257]
[1743789455715,4.1527,1824.9,1824.8,4.84378257]
[1743789455908,5.79706,1824.9,1824.8,4.84378257]
[1743789456217,5.24906,1824.9,1824.8,3.74736257]
[1743789456411,5.79706,1824.9,1824.8,0.53956257]
[1743789456712,5.79706,1824.9,1824.8,0.00822256]
[1743789458311,7.2007,1824.9,1824.2,1.9751]
[1743789458617,5.94943,1824.5,1824.1,4.30462]
[1743789458912,1.09672,1824.3,1824.2,41.33176839]
[1743789459111,4.0892,1824.4,1824.2,41.33176839]
[1743789459312,5.18589,1824.4,1824.3,2.0309]
[1743789459711,4.0892,1824.4,1824.1,0.00822256]
[1743789460019,10.03867,1824.4,1824.1,41.90506256]
[1743789460210,1.09678,1824.2,1824.1,0.00822256]
[1743789460408,4.30458,1824.2,1824.1,0.00822256]
[1743789460606,1.097,1823.9,1823.7,1.09705]
[1743789460805,2.74212,1824.1,1823.7,2.0422]
[1743789460806,2.0928,1824.1,1823.7,2.0422]
[1743789461012,2.0928,1824.1,1823.9,1.09692]
[1743789461013,3.18966,1824.1,1823.9,1.09692]
[1743789461309,2.0928,1824.1,1823.7,2.0422]
[1743789461510,1.09696,1823.9,1823.8,1.09702]
[1743789461715,1.09696,1823.9,1823.7,3.14746256]
[1743789461911,2.0928,1823.8,1823.7,3.14750256]
[1743789462411,2.65690001,1824.0,1823.7,2.05042256]
[1743789462618,2.0998,1823.9,1823.7,2.05042256]
[1743789462813,1.09702,1823.8,1823.7,0.00822256]
[1743789463019,5.71942,1823.8,1823.7,0.00822256]
[1743789463321,5.31922,1823.8,1823.7,0.00822256]
[1743789463617,8.52702,1823.8,1823.7,0.00822256]
[1743789463916,11.02702,1823.8,1823.7,0.00822256]
[1743789464115,1.09717,1823.6,1823.4,3.13274]
[1743789464319,1.0972,1823.5,1823.4,2.0355]
[1743789464511,3.197,1823.5,1823.4,2.0355]
[1743789464913,1.09726,1823.4,1823.1,1.09739]
[1743789465109,2.0998,1823.3,1823.2,42.8355]
[1743789465915,3.19712,1823.3,1823.2,42.8355]